{"text_format":"3","workbook":"xlsx","n_sheets":6,"sheets":["LUKUKAUSI","OPINTOPISTEET","BUDJETTI","NETTOMENOT KUUKAUDESSA","LUKUKAUDEN MENOT","KIRJAT"],"not_rendered":{"defined_names":21},"read":"whole","date_system":"1900"}

{"sheet":"LUKUKAUSI","index":0,"n_rows":29,"n_cols":9,"rows_kept":29,"merged":[[2,3,2,4]]}
[null,"LUKUJÄRJESTYS"]
[null,"SYYSLUKUKAUSI"]
[null,null,"ALOITUSKELLONAIKA ","AIKAVÄLI",null,"VUOSI"]
[null,null,"09:00:00",60,"(minuutteina)"]
[null,"KELLONAIKA","MA","TI","KE","TO","PE","LA","SU"]
[null,{"$f":"Aloitusaika+TIME(0,(ROW(A1)-1)*Aikaväli,0)","v":"09:00:00"},"Aamiainen","Aamiainen","Aamiainen","Aamiainen","Aamiainen"]
[null,"10:00:00","Taloushallinto: rakennus B, sali 256"]
[null,"11:00:00",{"$nulls":3},"Fysiikka: labrat \nrak. J, sali 309"]
[null,"12:00:00"]
[null,"13:00:00"]
[null,"14:00:00"]
[null,"15:00:00"]
[null,"16:00:00"]
[null,"17:00:00"]
[null,"18:00:00"]
[null,"19:00:00"]
[null,"20:00:00"]
[null,"21:00:00"]
[null,"22:00:00"]
[null,"23:00:00"]
[null,1]
[null,1.0416666666666665]
[null,1.0833333333333335]
[null,1.125]
[null,1.1666666666666665]
[null,1.2083333333333335]
[null,1.25]
[null,1.2916666666666665]
[null,1.3333333333333335]

{"sheet":"OPINTOPISTEET","index":1,"n_rows":17,"n_cols":8,"rows_kept":17}
[null,"OPPILAITOS"]
[null,"OPINTOPISTESUUNNITELMA"]
[null,"Tutkinnon nimi",{"$f":"Vuosi","v":"VUOSI"}]
[null,"YLEINEN EDISTYMINEN",null,"YLEINEN EDISTYMINEN"]
[null,{"$f":"AVERAGE(Kurssit[ARVOSANA])","v":3.5},{"$f":"IFERROR(TEXT(AVERAGEIF(Kurssit[SUORITETTU],\"Kyllä\",Kurssit[ARVOSANA]),\"0,00\"),\"0.00\")&\" Tämänhetkinen keskiarvo\"","v":"3,50 Tämänhetkinen keskiarvo"},{"$f":"COUNTIF(Kurssit[SUORITETTU],\"Kyllä\")/COUNTA(Kurssit[KURSSIN NIMI])","v":0.6666666666666666},{"$f":"TEXT(COUNTIF(Kurssit[SUORITETTU],\"Kyllä\")/COUNTA(Kurssit[KURSSIN NIMI]),\"0%\")&\" suoritettu\"","v":"67% suoritettu"}]
[null,"Huomautus: alla olevan taulukon opintopisteet määräytyvät automaattisesti jäljempänä olevan kurssitaulukon tietojen perusteella"]
[null,"PAKOLLINEN KOKONAISUUS","OPINTOPISTEET YHTEENSÄ","SUORITETTU","SUORITTAMATTA"]
[null,"Pääaine",{"$f":"IF(SUMIF(Kurssit[PAKOLLINEN KOKONAISUUS],OPINTOPISTEET!$B8,Kurssit[OPINTOPISTEET])=0,\"0\",SUMIF(Kurssit[PAKOLLINEN KOKONAISUUS],OPINTOPISTEET!$B8,Kurssit[OPINTOPISTEET]))","v":4},{"$f":"SUMIFS(Kurssit[OPINTOPISTEET],Kurssit[PAKOLLINEN KOKONAISUUS],OPINTOPISTEET!$B8,Kurssit[SUORITETTU],\"Kyllä\")","v":4},{"$f":"SUMIF(Kurssit[PAKOLLINEN KOKONAISUUS],OPINTOPISTEET!$B8,Kurssit[OPINTOPISTEET])-SUMIFS(Kurssit[OPINTOPISTEET],Kurssit[PAKOLLINEN KOKONAISUUS],OPINTOPISTEET!$B8,Kurssit[SUORITETTU],\"Kyllä\")","v":0}]
[null,"Sivuaine",{"$f":"IF(SUMIF(Kurssit[PAKOLLINEN KOKONAISUUS],OPINTOPISTEET!$B9,Kurssit[OPINTOPISTEET])=0,\"0\",SUMIF(Kurssit[PAKOLLINEN KOKONAISUUS],OPINTOPISTEET!$B9,Kurssit[OPINTOPISTEET]))","v":3},{"$f":"SUMIFS(Kurssit[OPINTOPISTEET],Kurssit[PAKOLLINEN KOKONAISUUS],OPINTOPISTEET!$B9,Kurssit[SUORITETTU],\"Kyllä\")","v":0},{"$f":"SUMIF(Kurssit[PAKOLLINEN KOKONAISUUS],OPINTOPISTEET!$B9,Kurssit[OPINTOPISTEET])-SUMIFS(Kurssit[OPINTOPISTEET],Kurssit[PAKOLLINEN KOKONAISUUS],OPINTOPISTEET!$B9,Kurssit[SUORITETTU],\"Kyllä\")","v":3}]
[null,"Valinnaisaine",{"$f":"IF(SUMIF(Kurssit[PAKOLLINEN KOKONAISUUS],OPINTOPISTEET!$B10,Kurssit[OPINTOPISTEET])=0,\"0\",SUMIF(Kurssit[PAKOLLINEN KOKONAISUUS],OPINTOPISTEET!$B10,Kurssit[OPINTOPISTEET]))","v":2},{"$f":"SUMIFS(Kurssit[OPINTOPISTEET],Kurssit[PAKOLLINEN KOKONAISUUS],OPINTOPISTEET!$B10,Kurssit[SUORITETTU],\"Kyllä\")","v":2},{"$f":"SUMIF(Kurssit[PAKOLLINEN KOKONAISUUS],OPINTOPISTEET!$B10,Kurssit[OPINTOPISTEET])-SUMIFS(Kurssit[OPINTOPISTEET],Kurssit[PAKOLLINEN KOKONAISUUS],OPINTOPISTEET!$B10,Kurssit[SUORITETTU],\"Kyllä\")","v":0}]
[null,"Vapaat opinnot",{"$f":"IF(SUMIF(Kurssit[PAKOLLINEN KOKONAISUUS],OPINTOPISTEET!$B11,Kurssit[OPINTOPISTEET])=0,\"0\",SUMIF(Kurssit[PAKOLLINEN KOKONAISUUS],OPINTOPISTEET!$B11,Kurssit[OPINTOPISTEET]))","v":"0"},{"$f":"SUMIFS(Kurssit[OPINTOPISTEET],Kurssit[PAKOLLINEN KOKONAISUUS],OPINTOPISTEET!$B11,Kurssit[SUORITETTU],\"Kyllä\")","v":0},{"$f":"SUMIF(Kurssit[PAKOLLINEN KOKONAISUUS],OPINTOPISTEET!$B11,Kurssit[OPINTOPISTEET])-SUMIFS(Kurssit[OPINTOPISTEET],Kurssit[PAKOLLINEN KOKONAISUUS],OPINTOPISTEET!$B11,Kurssit[SUORITETTU],\"Kyllä\")","v":0}]
[null,"Yhteensä",{"$f":"SUBTOTAL(109,OPINTOPISTEET!$C$8:$C$11)","v":9},{"$f":"SUBTOTAL(109,OPINTOPISTEET!$D$8:$D$11)","v":6},{"$f":"SUBTOTAL(109,OPINTOPISTEET!$E$8:$E$11)","v":3}]
[null,"Kurssit"]
[null,"KURSSIN NIMI","KURSSIN NUMERO","PAKOLLINEN KOKONAISUUS","OPINTOPISTEET","SUORITETTU","ARVOSANA","LUKUKAUSI"]
[null,"Kurssi 1","Numero","Pääaine",4,"Kyllä",{"v":4,"d":"4.0"},"Lukukausi 1"]
[null,"Kurssi 2","Numero","Sivuaine",3,"Ei",null,"Lukukausi 1"]
[null,"Kurssi 3","Numero","Valinnaisaine",2,"Kyllä",{"v":3,"d":"3.0"},"Lukukausi 1"]

{"sheet":"BUDJETTI","index":2,"n_rows":15,"n_cols":4,"rows_kept":15,"merged":[[5,1,5,2]]}
[null,{"$f":"Oppilaitos","v":"OPPILAITOS"}]
[null,"BUDJETIN SEURANTA"]
[null,"Oma budjetti",{"$f":"Vuosi","v":"VUOSI"}]
[null,"KÄYTETTYJEN TULOJEN PROSENTTIOSUUS"]
[null,{"$f":"NETTOMENOT_KUUKAUDESSA/NETTOTULOT_KUUKAUDESSA","v":{"v":0.7454545454545455,"d":"1 €"}}]
[null,{"$f":"B5","v":0.7454545454545455}]
[null,"NETTOTULOT KUUKAUDESSA","NETTOMENOT KUUKAUDESSA","SALDO"]
[null,{"$f":"C10","v":{"v":2750,"d":"2,750 €"}},{"$f":"'NETTOMENOT KUUKAUDESSA'!C4+'LUKUKAUDEN MENOT'!D4","v":{"v":2050,"d":"2,050 €"}},{"$f":"NETTOTULOT_KUUKAUDESSA-NETTOMENOT_KUUKAUDESSA","v":{"v":700,"d":"700 €"}}]
[null,"Kuukausia lukukaudessa",4]
[null,"KUUKAUSITULOT",{"$f":"SUM(Kuukausitulot[SUMMA])","v":{"v":2750,"d":"2,750 €"}}]
[null,"KOHDE","SUMMA"]
[null,"Kiinteät tulot",{"v":1500,"d":"1,500 €"}]
[null,"Tuet",{"v":500,"d":"500 €"}]
[null,"Lainat",{"v":500,"d":"500 €"}]
[null,"Muut tulot",{"v":250,"d":"250 €"}]

{"sheet":"NETTOMENOT KUUKAUDESSA","index":3,"n_rows":15,"n_cols":3,"rows_kept":15}
[null,{"$f":"Oppilaitos","v":"OPPILAITOS"}]
[null,"BUDJETIN SEURANTA"]
[null,"Kuukauden menot",{"$f":"Vuosi","v":"VUOSI"}]
[null,"KUUKAUDEN MENOT",{"$f":"SUM(KuukausiMenot[SUMMA])","v":{"v":1675,"d":"1,675 €"}}]
[null,"KOHDE","SUMMA"]
[null,"Vuokra",{"v":300,"d":"300 €"}]
[null,"Lämmitys, sähkö ja vesi",{"v":50,"d":"50 €"}]
[null,"Matkapuhelin",{"v":75,"d":"75 €"}]
[null,"Ruokaostokset",{"v":250,"d":"250 €"}]
[null,"Autoon liittyvät menot",{"v":50,"d":"50 €"}]
[null,"Opintolaina",{"v":500,"d":"500 €"}]
[null,"Luottokortit",{"v":275,"d":"275 €"}]
[null,"Vakuutukset",{"v":125,"d":"125 €"}]
[null,"Vapaa-aika",{"v":50,"d":"50 €"}]
[null,"Sekalaiset",{"v":0,"d":"0 €"}]

{"sheet":"LUKUKAUDEN MENOT","index":4,"n_rows":11,"n_cols":4,"rows_kept":11}
[null,{"$f":"Oppilaitos","v":"OPPILAITOS"}]
[null,"BUDJETIN SEURANTA"]
[null,"Lukukauden menot",{"$f":"Vuosi","v":"VUOSI"}]
[null,"LUKUKAUDEN MENOT (yhteensä/kk)",{"$f":"SUM(LukukaudenMenot[SUMMA])","v":{"v":1500,"d":"1,500 €"}},{"$f":"SUM(LukukaudenMenot[KUUKAUDESSA])","v":{"v":375,"d":"375 €"}}]
[null,"KOHDE","SUMMA","KUUKAUDESSA"]
[null,"Lukukausimaksut",{"v":750,"d":"750 €"},{"$f":"LukukaudenMenot[[#This Row],[SUMMA]]/Kuukautta_lukukaudessa","v":{"v":187.5,"d":"188 €"}}]
[null,"Opintomateriaalimaksut",{"v":250,"d":"250 €"},{"$f":"LukukaudenMenot[[#This Row],[SUMMA]]/Kuukautta_lukukaudessa","v":{"v":62.5,"d":"63 €"}}]
[null,"Kirjat",{"v":500,"d":"500 €"},{"$f":"LukukaudenMenot[[#This Row],[SUMMA]]/Kuukautta_lukukaudessa","v":{"v":125,"d":"125 €"}}]
[null,"Vuokratakuu",{"v":0,"d":"0 €"},{"$f":"LukukaudenMenot[[#This Row],[SUMMA]]/Kuukautta_lukukaudessa","v":{"v":0,"d":"0 €"}}]
[null,"Bussi- ja junaliput",{"v":0,"d":"0 €"},{"$f":"LukukaudenMenot[[#This Row],[SUMMA]]/Kuukautta_lukukaudessa","v":{"v":0,"d":"0 €"}}]
[null,"Muut maksut",{"v":0,"d":"0 €"},{"$f":"LukukaudenMenot[[#This Row],[SUMMA]]/Kuukautta_lukukaudessa","v":{"v":0,"d":"0 €"}}]

{"sheet":"KIRJAT","index":5,"n_rows":7,"n_cols":7,"rows_kept":7}
[null,{"$f":"Oppilaitos","v":"OPPILAITOS"}]
[null,"KIRJOJEN SEURANTA"]
[null,"Kirjaluettelo"]
[null,"NIMI","TEKIJÄ","KURSSI","HANKINTAPAIKKA","ISBN","MUISTIINPANOT"]
[null,"Kirjan nimi","Tekijä","Kurssi","Sijainti","Numero"]
[null,"Kirjan nimi","Tekijä","Kurssi","Sijainti","Numero"]
[null,"Kirjan nimi","Tekijä","Kurssi","Sijainti","Numero"]